bitfinex/quotes_BTCUSD_20251124
["timestamp","ask_amount","ask_price","bid_price","bid_amount"]
[1763958576885,2.0,86778.0,86751.0,0.10158087]
[1763958577086,2.0,86778.0,86765.0,0.09696278]
[1763958577803,2.0,86777.0,86765.0,0.09696278]
[1763958578007,2.0,86778.0,86765.0,0.09696278]
[1763958578252,2.0,86778.0,86766.0,0.01014628]
[1763958579087,2.0,86778.0,86760.0,0.0045]
[1763958579410,2.0,86778.0,86765.0,0.09696278]
[1763958579639,2.0,86778.0,86766.0,0.01908748]
[1763958579640,0.08455781,86778.0,86766.0,0.01908748]
[1763958580051,0.00025302,86779.0,86766.0,0.02358748]
[1763958581324,0.03341,86787.0,86766.0,0.02358748]
[1763958581534,0.56224298,86780.0,86767.0,0.01205503]
[1763958581742,0.08750288,86786.0,86753.0,0.0045]
[1763958581743,0.56224298,86777.0,86753.0,0.0045]
[1763958581955,0.56224298,86777.0,86765.0,0.09696278]
[1763958582171,0.56224298,86780.0,86765.0,0.09696278]
[1763958582384,0.12084946,86787.0,86766.0,0.0275505]
[1763958582385,0.001,86779.0,86766.0,0.0275505]
[1763958582593,0.12084946,86787.0,86766.0,0.0275505]
[1763958582803,0.02115644,86786.0,86778.0,0.0045]
[1763958583019,0.02115644,86785.0,86778.0,0.0045]
[1763958583232,2.0,86796.0,86786.0,0.0045]
[1763958583443,0.34416322,86795.0,86786.0,0.0045]
[1763958583650,0.323,86793.0,86768.0,0.02070938]
[1763958583861,0.56224298,86790.0,86779.0,0.09696278]
[1763958584073,0.001,86787.0,86769.0,0.01301235]
[1763958584250,0.56224298,86780.0,86769.0,0.01301235]
[1763958584485,0.001,86779.0,86769.0,0.01301235]
[1763958584674,0.001,86779.0,86770.0,0.01099751]
[1763958584907,0.06418,86786.0,86770.0,0.01099751]
[1763958585229,0.02117836,86785.0,86770.0,0.01099751]
[1763958585428,0.06418,86786.0,86770.0,0.01099751]
[1763958585429,0.56224298,86780.0,86770.0,0.01099751]
[1763958585668,0.06418,86786.0,86770.0,0.01099751]
[1763958585868,0.02117838,86785.0,86771.0,0.01079603]
[1763958586084,0.02117838,86784.0,86771.0,0.01079603]
[1763958586238,0.02117838,86783.0,86771.0,0.01079603]
[1763958586438,0.35493,86787.0,86771.0,0.01079603]
[1763958586667,0.35493,86787.0,86765.0,0.09696278]
[1763958586668,0.56224298,86781.0,86765.0,0.09696278]
[1763958587010,0.02119052,86780.0,86765.0,0.09696278]
[1763958587144,0.02119052,86780.0,86753.0,0.00347]
[1763958587145,0.02119052,86779.0,86753.0,0.00347]
[1763958587359,0.02119052,86778.0,86765.0,0.09696278]
[1763958587547,0.02119052,86777.0,86765.0,0.09696278]
[1763958587906,0.02119052,86776.0,86765.0,0.09696278]
[1763958588109,0.02119052,86775.0,86765.0,0.09696278]
[1763958588238,0.94942298,86780.0,86765.0,0.09696278]
[1763958588239,0.02119052,86774.0,86765.0,0.09696278]
[1763958588444,0.94942298,86780.0,86766.0,0.00969628]
[1763958588445,0.02119052,86773.0,86766.0,0.00969628]
[1763958588707,0.02119052,86773.0,86753.0,0.00347]
[1763958588708,0.02119052,86772.0,86754.0,0.00347]
[1763958588905,0.323,86779.0,86751.0,0.10043278]
[1763958589208,0.323,86769.0,86751.0,0.09696278]
[1763958589496,0.323,86769.0,86751.0,0.10043278]
[1763958589754,0.323,86769.0,86752.0,0.01004328]
[1763958590100,0.03193,86771.0,86752.0,0.01004328]
[1763958590303,0.02122219,86770.0,86753.0,0.00347]
[1763958590509,0.03193,86771.0,86753.0,0.00347]
[1763958590685,0.0212222,86770.0,86753.0,0.00347]
[1763958590885,0.03193,86776.0,86754.0,0.01104761]
[1763958591208,0.02122224,86775.0,86765.0,0.09696278]
[1763958591375,0.323,86779.0,86765.0,0.09696278]
[1763958591574,0.02122534,86778.0,86766.0,0.02118749]
[1763958591816,0.02122528,86777.0,86766.0,0.02465749]
[1763958591975,0.02122528,86777.0,86765.0,0.09696278]
[1763958591976,0.02122499,86776.0,86767.0,0.01216203]
[1763958592227,0.02122639,86775.0,86767.0,0.01216203]
[1763958592529,0.323,86779.0,86767.0,0.01216203]
[1763958592735,0.323,86779.0,86778.0,0.00347]
[1763958592942,0.34422693,86779.0,86778.0,0.00347]
[1763958593367,0.02122693,86779.0,86767.0,0.01216203]
[1763958593573,0.02122693,86778.0,86768.0,0.01091248]
[1763958593775,0.323,86779.0,86759.0,0.00347]
[1763958593978,0.02122613,86778.0,86766.0,0.09696278]
[1763958594145,0.323,86779.0,86765.0,0.09696278]
[1763958594351,0.02122584,86778.0,86765.0,0.09696278]
[1763958594590,0.323,86779.0,86766.0,0.0265205]
[1763958594799,0.02122585,86778.0,86767.0,0.01234833]
[1763958595102,0.323,86779.0,86768.0,0.02304997]
[1763958595276,0.02122419,86778.0,86768.0,0.02304997]
[1763958595476,0.323,86779.0,86768.0,0.02304997]
[1763958595658,0.02122421,86778.0,86769.0,0.00347]
[1763958595869,0.000253,86787.0,86770.0,0.01358311]
[1763958596078,0.000253,86787.0,86777.0,0.00347]
[1763958596079,0.02122545,86786.0,86777.0,0.00347]
[1763958596277,0.02122545,86786.0,86770.0,0.01358311]
[1763958596278,0.02122545,86785.0,86770.0,0.01358311]
[1763958596482,0.02122545,86784.0,86771.0,0.01140159]
[1763958596701,0.02122545,86783.0,86771.0,0.01140159]
[1763958596865,0.02122545,86782.0,86771.0,0.01140159]
[1763958597070,0.06418,86786.0,86771.0,0.01140159]
[1763958597292,2.0,86784.0,86771.0,0.01140159]
[1763958597620,0.02122226,86783.0,86765.0,0.09696278]
[1763958597822,0.02122226,86782.0,86765.0,0.09696278]
[1763958597991,0.323,86784.0,86765.0,0.09696278]
[1763958598189,0.0212023,86783.0,86765.0,0.09696278]
[1763958598402,0.0212023,86782.0,86765.0,0.09696278]
[1763958598604,0.324,86784.0,86766.0,0.00969628]
[1763958598806,0.323,86779.0,86766.0,0.00969628]
[1763958599700,0.323,86779.0,86778.0,0.00347]
[1763958599897,0.001,86782.0,86778.0,0.00347]
[1763958600097,0.323253,86787.0,86778.0,0.00347]
[1763958600298,0.323,86784.0,86778.0,0.00347]
[1763958600459,0.02120146,86783.0,86778.0,0.00347]
[1763958600655,0.323,86784.0,86778.0,0.00347]
[1763958600656,0.02120146,86782.0,86778.0,0.00347]
[1763958600973,0.001,86782.0,86766.0,0.00969628]
[1763958601142,0.001,86782.0,86767.0,0.01066591]
[1763958601346,0.000253,86787.0,86767.0,0.01066591]
[1763958601549,0.03193,86783.0,86767.0,0.01066591]
[1763958601857,0.56224298,86780.0,86767.0,0.01066591]
[1763958602255,0.38056987,86780.0,86767.0,0.01066591]
[1763958602459,0.000253,86787.0,86768.0,0.03000486]
[1763958602691,0.0211995,86786.0,86768.0,0.03000486]
[1763958602863,0.26684932,86796.0,86768.0,0.03381284]
[1763958603063,0.001,86783.0,86768.0,0.03393091]
[1763958603270,0.001,86783.0,86768.0,0.01088094]
[1763958603492,0.56224298,86790.0,86769.0,0.01078437]
[1763958603688,0.56224298,86780.0,86769.0,0.01078437]
[1763958604662,0.65918749,86780.0,86769.0,0.03383407]
[1763958605088,0.65918749,86780.0,86769.0,0.01078437]
[1763958605283,1.31837498,86780.0,86768.0,0.00011807]
[1763958605484,0.0619,86779.0,86768.0,0.00011807]
[1763958605686,0.65918749,86780.0,86769.0,0.09696278]
[1763958605884,0.65918749,86780.0,86768.0,0.00011807]
[1763958606572,0.03016,86783.0,86768.0,0.00011807]
[1763958607023,0.323,86779.0,86768.0,0.00011807]
[1763958607375,0.323,86779.0,86769.0,0.09696278]
[1763958607548,0.323,86779.0,86768.0,0.00011807]
[1763958609126,0.0619,86788.0,86769.0,0.09696278]
[1763958609127,0.323,86788.0,86769.0,0.09696278]
[1763958609327,0.323,86786.0,86770.0,0.02304944]
[1763958609476,0.02120361,86785.0,86770.0,0.02304944]
[1763958609679,0.02120361,86785.0,86771.0,0.01201303]
[1763958609888,0.02120361,86785.0,86772.0,0.02136487]
[1763958610515,0.01755014,86797.0,86772.0,0.02136487]
[1763958610516,0.01755014,86797.0,86783.0,0.09696278]
[1763958610670,0.02120548,86796.0,86783.0,0.09696278]
[1763958610874,0.35641,86808.0,86784.0,0.00969628]
[1763958610875,0.001,86785.0,86784.0,0.00969628]
[1763958611085,0.323,86807.0,86784.0,0.00969628]
[1763958611282,0.001,86788.0,86784.0,0.00969628]
[1763958611483,0.001,86788.0,86769.0,0.09696278]
[1763958611484,0.001,86785.0,86769.0,0.09696278]
[1763958612648,0.03016,86792.0,86769.0,0.09696278]
[1763958613026,0.323,86789.0,86769.0,0.09696278]
[1763958613407,0.0619,86788.0,86769.0,0.09696278]
[1763958613608,0.0619,86788.0,86770.0,0.00970809]
[1763958614313,0.323,86789.0,86771.0,0.01869674]
[1763958614625,0.324,86789.0,86771.0,0.01869674]
[1763958615254,0.324,86789.0,86770.0,0.03275753]
[1763958615446,0.002,86789.0,86770.0,0.03275753]
[1763958615641,0.002,86789.0,86771.0,0.01298384]
[1763958615845,0.001,86789.0,86772.0,0.0230489]
[1763958616045,0.03016,86792.0,86771.0,0.01298384]
[1763958616046,0.001,86788.0,86771.0,0.01298384]
[1763958616404,0.03016,86792.0,86771.0,0.01298384]
[1763958616711,0.323,86796.0,86769.0,0.09696278]
[1763958616712,0.001,86789.0,86772.0,0.03405537]
[1763958617089,0.323,86796.0,86772.0,0.03405537]
[1763958617323,0.001,86788.0,86772.0,0.03405537]
[1763958617693,0.001,86789.0,86772.0,0.03405537]
[1763958617890,0.0619,86793.0,86772.0,0.03405537]
[1763958618234,0.0619,86793.0,86773.0,0.01311362]
[1763958618861,0.0619,86793.0,86774.0,0.02304837]
[1763958619133,0.001,86789.0,86774.0,0.02304837]
[1763958619333,0.03016,86798.0,86774.0,0.02304837]
[1763958619491,0.03814177,86797.0,86774.0,0.02304837]
[1763958619694,0.001,86793.0,86783.0,0.09696278]
[1763958620317,0.001,86789.0,86783.0,0.09696278]
[1763958620501,0.001,86793.0,86783.0,0.09696278]
[1763958620912,0.001,86793.0,86775.0,0.01332428]
[1763958620913,0.002,86793.0,86775.0,0.01332428]
[1763958621111,0.001,86793.0,86783.0,0.09696278]
[1763958621385,0.001,86793.0,86783.0,0.10665906]
[1763958622633,0.3849,86804.0,86783.0,0.10665906]
[1763958622788,0.03016,86795.0,86783.0,0.10665906]
[1763958622987,0.002,86793.0,86783.0,0.10665906]
[1763958623593,0.001,86793.0,86783.0,0.10665906]
[1763958623802,0.001,86793.0,86784.0,0.01066591]
[1763958624939,0.001,86795.0,86784.0,0.01066591]
[1763958625443,0.01716651,86798.0,86784.0,0.01066591]
[1763958625663,0.001,86793.0,86784.0,0.01066591]
[1763958625949,0.0171844,86804.0,86784.0,0.01066591]
[1763958626151,0.0211905,86803.0,86784.0,0.02304572]
[1763958626350,0.0211905,86802.0,86783.0,0.09696278]
[1763958626579,0.323,86804.0,86784.0,0.02148749]
[1763958626732,0.02118799,86803.0,86784.0,0.02148749]
[1763958626898,0.02118799,86802.0,86784.0,0.02148749]
[1763958627104,0.33982185,86804.0,86785.0,0.01184503]
[1763958627315,0.02218773,86803.0,86785.0,0.01184503]
[1763958627525,0.001,86803.0,86785.0,0.01184503]
[1763958628603,0.001,86803.0,86785.0,0.03257577]
[1763958628805,0.001,86802.0,86785.0,0.03257577]
[1763958629009,0.001,86803.0,86786.0,0.01295386]
[1763958629241,0.001,86803.0,86797.0,0.09696278]
[1763958629451,0.002,86803.0,86797.0,0.09696278]
[1763958629658,0.001,86803.0,86797.0,0.09696278]
[1763958630160,0.001,86802.0,86797.0,0.09696278]
[1763958630368,0.00039348,86802.0,86798.0,0.00969628]
[1763958630794,0.00139348,86802.0,86798.0,0.00969628]
[1763958631002,0.00139348,86802.0,86783.0,0.09696278]
[1763958631202,0.00139348,86802.0,86784.0,0.02304572]
[1763958631408,0.00039348,86802.0,86784.0,0.02304572]
[1763958632259,0.00139348,86802.0,86784.0,0.02304572]
[1763958632462,0.00039348,86802.0,86784.0,0.02304572]
[1763958632779,0.00039348,86802.0,86797.0,0.09696278]
[1763958634769,0.00034779,86798.0,86797.0,0.09696278]
[1763958635611,0.00034779,86798.0,86797.0,0.11813097]
[1763958636032,0.00039348,86802.0,86797.0,0.11813097]
[1763958636259,0.0004,86810.0,86798.0,0.0348551]
[1763958636471,0.0004,86810.0,86798.0,0.0118131]
[1763958637289,0.0004,86810.0,86799.0,0.01948093]
[1763958637495,0.0004,86810.0,86798.0,0.0118131]
[1763958637644,0.0302,86831.0,86809.0,0.02307]
[1763958637645,0.00543514,86831.0,86809.0,0.02307]
[1763958637858,0.00543514,86831.0,86816.0,0.09696278]
[1763958637859,0.00555303,86831.0,86816.0,0.09696278]
[1763958638056,0.00555303,86831.0,86817.0,0.00969628]
[1763958638270,0.01717398,86831.0,86817.0,0.00969628]
[1763958638672,0.01717398,86831.0,86830.0,0.02307]
[1763958638850,0.01817398,86831.0,86818.0,0.02307]
[1763958639054,0.01717398,86831.0,86819.0,0.01297291]
[1763958639451,0.01817398,86831.0,86819.0,0.01297291]
[1763958639660,0.01717398,86831.0,86820.0,0.02307]
[1763958639847,0.01817398,86831.0,86820.0,0.02307]
[1763958640257,0.01717398,86831.0,86820.0,0.02307]
[1763958640466,0.01717398,86831.0,86830.0,0.02307]
[1763958640676,0.00111789,86831.0,86830.0,0.02307]
[1763958640897,0.00211789,86831.0,86830.0,0.04614]
[1763958641111,0.00011789,86831.0,86830.0,0.04614]
[1763958641630,0.00011789,86831.0,86830.0,0.02307]
[1763958641631,0.00211789,86831.0,86830.0,0.02307]
[1763958641831,0.00111789,86831.0,86830.0,0.02307]
[1763958642032,0.00111789,86831.0,86830.0,0.04614]
[1763958642253,0.00216079,86831.0,86830.0,0.04614]
[1763958642916,0.00116079,86831.0,86830.0,0.04614]
[1763958644919,0.00116079,86831.0,86830.0,0.02307]
[1763958645378,0.00116079,86831.0,86821.0,0.01330057]
[1763958645571,0.00011789,86831.0,86830.0,0.12031278]
[1763958646873,0.04057789,86831.0,86822.0,0.01336133]
[1763958647079,0.04057789,86831.0,86812.0,0.02335]
[1763958647282,0.04057789,86831.0,86821.0,0.09696278]
[1763958647494,0.00011789,86831.0,86821.0,0.09696278]
[1763958648111,0.00011789,86831.0,86822.0,0.01782224]
[1763958648325,0.00011789,86831.0,86823.0,0.0114785]
[1763958648532,0.00111789,86831.0,86823.0,0.0114785]
[1763958649177,0.00011789,86831.0,86823.0,0.0114785]
[1763958650643,0.00111789,86831.0,86823.0,0.0114785]
[1763958651065,0.00082174,86824.0,86823.0,0.0114785]
[1763958651515,0.00082174,86824.0,86823.0,0.0581785]
[1763958652996,0.00082174,86824.0,86823.0,0.02335]
[1763958653225,0.00082174,86824.0,86823.0,0.0467]
[1763958657107,0.00082174,86824.0,86823.0,0.0477]
[1763958657303,0.00082174,86824.0,86823.0,0.0487]
[1763958657514,0.00082174,86824.0,86823.0,0.04854686]
[1763958658288,0.00082174,86824.0,86823.0,0.04754686]
[1763958658496,0.00082174,86824.0,86823.0,0.06958223]
[1763958658693,0.00082174,86824.0,86823.0,0.05350508]
[1763958659455,0.00082174,86824.0,86823.0,0.05450508]
[1763958659841,0.00082174,86824.0,86823.0,0.05350508]
[1763958660885,0.00082174,86824.0,86823.0,0.05450508]
[1763958661091,0.00082174,86824.0,86823.0,0.05350508]
[1763958661314,0.00082174,86824.0,86823.0,0.02319686]
[1763958661527,0.00082174,86824.0,86823.0,0.001]
[1763958661763,0.00082174,86824.0,86823.0,0.0199]
[1763958661966,0.00082174,86824.0,86823.0,0.0209]
[1763958662199,0.03085,86837.0,86824.0,0.02768]
[1763958662408,0.03085,86837.0,86825.0,0.006948]
[1763958662409,0.0211489,86836.0,86825.0,0.006948]
[1763958662618,0.0211489,86835.0,86825.0,0.006948]
[1763958662828,0.0211489,86834.0,86825.0,0.006948]
[1763958663049,0.0211489,86834.0,86823.0,0.001]
[1763958663050,2.0,86825.0,86823.0,0.001]
[1763958663260,2.0,86823.0,86815.0,0.02768]
[1763958663471,0.0211489,86822.0,86815.0,0.02779789]
[1763958663676,0.0211489,86821.0,86816.0,0.09696278]
[1763958663884,2.0,86836.0,86820.0,0.04134]
[1763958664085,2.0,86833.0,86820.0,0.04134]
[1763958664302,0.323,86830.0,86820.0,0.04134]
[1763958664510,0.03085,86837.0,86821.0,0.0353661]
[1763958664511,0.02116128,86829.0,86821.0,0.0353661]
[1763958664744,0.001,86822.0,86821.0,0.0123302]
[1763958664953,0.02116128,86827.0,86815.0,0.02779789]
[1763958665156,0.02116128,86826.0,86815.0,0.02779789]
[1763958665368,0.02116128,86825.0,86815.0,0.02779789]
[1763958665588,0.05873,86829.0,86815.0,0.00011789]
[1763958665589,0.0289,86816.0,86815.0,0.00011789]
[1763958665795,0.05006128,86816.0,86815.0,0.00011789]
[1763958666223,0.02116128,86816.0,86815.0,0.04145789]
[1763958666425,0.05873,86825.0,86815.0,0.00011789]
[1763958666629,2.0,86823.0,86815.0,0.00011789]
[1763958666845,0.02116128,86822.0,86815.0,0.00011789]
[1763958667055,0.02116128,86821.0,86815.0,0.00011789]
[1763958667276,0.02116128,86820.0,86815.0,0.00011789]
[1763958667481,0.02116128,86819.0,86816.0,0.09696278]
[1763958667686,0.02116128,86818.0,86817.0,0.01478307]
[1763958668148,0.02116128,86818.0,86817.0,0.05612307]
[1763958668362,0.02116128,86818.0,86817.0,0.04134]
[1763958668596,0.00025279,86832.0,86817.0,0.09209]
[1763958668801,0.02117151,86831.0,86820.0,0.09696278]
[1763958669059,0.00025279,86832.0,86831.0,0.02768]
[1763958669481,0.02142461,86832.0,86831.0,0.02768]
[1763958669690,0.00025279,86832.0,86831.0,0.06902]
[1763958669903,0.00025279,86832.0,86831.0,0.080997]
[1763958670100,0.00125279,86832.0,86831.0,0.080997]
[1763958671346,0.00125279,86832.0,86831.0,0.131747]
[1763958672582,0.00025279,86832.0,86831.0,0.131747]
[1763958673098,0.00025279,86832.0,86831.0,0.132747]
[1763958673858,0.00025279,86832.0,86831.0,0.12077]
[1763958674237,0.00025279,86832.0,86831.0,0.12177]
[1763958676292,0.0004,86840.0,86831.0,0.12177]
[1763958676497,0.0004,86840.0,86839.0,0.13830278]
[1763958676902,0.0004,86840.0,86839.0,0.18905278]
[1763958679246,0.0004,86860.0,86849.0,0.04134]
[1763958679247,0.01807122,86854.0,86849.0,0.04134]
[1763958679461,0.01687122,86854.0,86853.0,0.09696278]
[1763958679662,0.0004,86870.0,86859.0,0.03348]
[1763958679829,0.0004,86870.0,86853.0,0.13044278]
[1763958679830,0.0004,86870.0,86869.0,0.03348]
[1763958680153,0.0004,86870.0,86869.0,0.06696]
[1763958680539,0.00051797,86870.0,86869.0,0.06696]
[1763958681097,0.00051797,86870.0,86869.0,0.06796]
[1763958681901,0.00051797,86870.0,86869.0,0.06896]
[1763958682052,0.00051797,86870.0,86869.0,0.075856]
[1763958682388,0.00171811,86870.0,86869.0,0.075856]
[1763958684625,0.0004,86890.0,86869.0,0.075856]
[1763958684825,0.0004,86890.0,86879.0,0.13044278]
[1763958685032,0.0004,86890.0,86879.0,0.16392278]
[1763958685227,0.0004,86890.0,86879.0,0.18031506]
[1763958686987,0.0004,86890.0,86889.0,0.04389]
[1763958687238,0.0004,86890.0,86889.0,0.07737]
[1763958687414,0.0004,86890.0,86889.0,0.04389]
[1763958687611,0.0004,86890.0,86889.0,0.085107]
[1763958687818,0.0004,86910.0,86889.0,0.085107]
[1763958688036,0.00079333,86910.0,86909.0,0.05575]
[1763958688915,0.00079333,86910.0,86909.0,0.08883]
[1763958689355,0.56122879,86930.0,86920.0,0.03308]
[1763958689356,0.0004,86930.0,86920.0,0.03308]
[1763958689559,0.0004,86930.0,86910.0,0.03308]
[1763958689560,0.00051792,86930.0,86929.0,0.03308]
[1763958690015,0.00051792,86930.0,86929.0,0.06616]
[1763958690765,0.00241115,86930.0,86929.0,0.06616]
[1763958690939,0.00241115,86930.0,86921.0,0.09696278]
[1763958690940,0.0004,86950.0,86931.0,0.02928]
[1763958691160,0.0004,86950.0,86949.0,0.00662]
[1763958691567,0.04177,86950.0,86932.0,0.00662]
[1763958691774,0.323,86946.0,86932.0,0.00662]
[1763958691923,0.38173,86949.0,86932.0,0.00662]
[1763958692144,0.60259879,86950.0,86932.0,0.00662]
[1763958692145,0.323,86947.0,86932.0,0.00662]
[1763958692358,0.323,86947.0,86937.0,0.09696278]
[1763958692522,0.323,86947.0,86932.0,0.00662]
[1763958692716,0.323,86947.0,86935.0,0.09696278]
[1763958693121,0.323,86949.0,86935.0,0.09696278]
[1763958693339,0.38173,86949.0,86935.0,0.09696278]
[1763958693729,0.38173,86949.0,86913.0,0.02928]
[1763958693730,0.06609,86936.0,86913.0,0.02928]
[1763958694004,0.323,86944.0,86927.0,0.09696278]
[1763958694145,0.56122879,86950.0,86935.0,0.02928]
[1763958694146,0.323,86942.0,86935.0,0.02928]
[1763958694360,0.02093556,86941.0,86927.0,0.09696278]
[1763958694579,0.323,86939.0,86926.0,0.00662]
[1763958694772,0.001,86949.0,86926.0,0.00662]
[1763958694773,0.001,86949.0,86927.0,0.09696278]
[1763958695011,0.02093705,86948.0,86927.0,0.09696278]
[1763958695201,0.324,86949.0,86927.0,0.09696278]
[1763958695202,0.02093705,86947.0,86927.0,0.09696278]
[1763958695423,0.02093705,86947.0,86926.0,0.0359]
[1763958695424,0.323,86939.0,86926.0,0.00662]
[1763958695624,0.02093322,86938.0,86926.0,0.00662]
[1763958695840,0.323,86939.0,86926.0,0.00662]
[1763958695841,0.323,86939.0,86927.0,0.09696278]
[1763958696319,0.02093551,86938.0,86927.0,0.09696278]
[1763958696526,0.001,86941.0,86938.0,0.02928]
[1763958697019,0.001,86941.0,86927.0,0.09696278]
[1763958697020,0.001,86941.0,86940.0,0.02928]
[1763958697584,2.0,86958.0,86940.0,0.02928]
[1763958697760,0.56082879,86950.0,86941.0,0.01426]
[1763958697916,0.02094048,86949.0,86941.0,0.01426]
[1763958698122,0.02094048,86948.0,86941.0,0.01426]
[1763958698300,0.02094048,86947.0,86941.0,0.01426]
[1763958698507,0.02094048,86946.0,86941.0,0.01426]
[1763958698707,0.02094048,86945.0,86941.0,0.01426]
[1763958698929,0.02094048,86944.0,86941.0,0.01426]
[1763958699136,0.02094048,86943.0,86942.0,0.09696278]
[1763958699335,0.02094048,86948.0,86942.0,0.09696278]
[1763958699547,0.00025227,86949.0,86943.0,0.09696278]
[1763958699548,0.02094048,86947.0,86943.0,0.09696278]
[1763958699772,0.02094048,86946.0,86943.0,0.09696278]
[1763958699971,0.56082879,86960.0,86943.0,0.09696278]
[1763958700191,0.0209504,86959.0,86945.0,0.03868]
[1763958700402,0.00011784,86960.0,86945.0,0.03868]
[1763958700607,0.01642986,86960.0,86945.0,0.03868]
[1763958700811,0.00011784,86960.0,86945.0,0.03868]
[1763958701013,0.56094663,86960.0,86946.0,0.07591]
[1763958701423,0.56094663,86960.0,86959.0,0.05714]
[1763958701424,0.00011784,86960.0,86959.0,0.05714]
[1763958701639,0.00011784,86960.0,86959.0,0.11459]
[1763958701640,0.00111784,86960.0,86959.0,0.11459]
[1763958701849,0.00011784,86960.0,86959.0,0.11459]
[1763958702262,0.00111784,86960.0,86959.0,0.11459]
[1763958703100,0.00111784,86960.0,86959.0,0.11559]
[1763958703505,0.00111784,86960.0,86959.0,0.11459]
[1763958703728,0.00111784,86960.0,86959.0,0.11559]
[1763958704033,0.00011784,86960.0,86959.0,0.11559]
[1763958704247,0.00011784,86960.0,86959.0,0.11659]
[1763958704673,0.00011784,86960.0,86959.0,0.05914]
[1763958704877,0.00011784,86960.0,86959.0,0.02046]
[1763958705537,0.00011784,86960.0,86959.0,0.001]
[1763958705745,0.00011784,86960.0,86946.0,0.01846]
[1763958705979,0.00011784,86960.0,86959.0,0.001]
[1763958706546,0.00011784,86960.0,86959.0,0.039]
[1763958706748,0.00111784,86960.0,86959.0,0.001]
[1763958707078,0.00146466,86960.0,86955.0,0.02087]
[1763958707231,0.00211784,86960.0,86955.0,0.02087]
[1763958707658,0.00111784,86960.0,86955.0,0.02087]
[1763958708245,0.00011784,86960.0,86955.0,0.02087]
[1763958709904,0.00011784,86960.0,86946.0,0.01846]
[1763958711231,0.00011784,86960.0,86959.0,0.05887]
[1763958711643,0.00011784,86960.0,86959.0,0.1172]
[1763958712182,0.02117556,86960.0,86959.0,0.1172]
[1763958712677,0.0004,86980.0,86959.0,0.1172]
[1763958712869,0.0004,86980.0,86977.0,0.14158278]
[1763958713088,0.0004,86980.0,86979.0,0.038]
[1763958713445,0.0004,86980.0,86979.0,0.09633]
[1763958713657,0.0004,86980.0,86979.0,0.038]
[1763958713868,0.0174041,86980.0,86977.0,0.00662]
[1763958714069,0.00091415,86978.0,86977.0,0.00662]
[1763958714537,0.00191415,86978.0,86977.0,0.00662]
[1763958714737,0.00191415,86978.0,86977.0,0.04462]
[1763958714938,0.00091415,86978.0,86977.0,0.10295]
[1763958715410,0.00191415,86978.0,86977.0,0.10295]
[1763958716165,0.00191415,86978.0,86977.0,0.00662]
[1763958716698,0.00191415,86978.0,86977.0,0.04462]
[1763958717121,0.00191415,86978.0,86966.0,0.05833]
[1763958717122,0.00291415,86978.0,86972.0,0.00662]
[1763958717328,0.00291415,86978.0,86960.0,0.05833]
[1763958717329,0.002,86978.0,86960.0,0.05833]
[1763958717724,0.002,86978.0,86977.0,0.04462]
[1763958717938,0.001,86978.0,86977.0,0.04462]
[1763958718141,0.323,86979.0,86977.0,0.04462]
[1763958718280,0.002,86978.0,86977.0,0.00662]
[1763958718485,0.001,86978.0,86977.0,0.00662]
[1763958718688,0.001,86978.0,86959.0,0.02087]
[1763958719005,0.001,86978.0,86959.0,0.0792]
[1763958719208,0.002,86978.0,86959.0,0.0792]
[1763958719551,0.002,86978.0,86960.0,0.05833]
[1763958720254,0.001,86978.0,86960.0,0.05833]
[1763958720961,0.001,86978.0,86943.0,0.15422278]
[1763958720962,0.02984,86961.0,86943.0,0.15422278]
[1763958721207,0.323,86959.0,86946.0,0.01857784]
[1763958721819,0.323,86959.0,86958.0,0.05592]
[1763958722021,0.01667837,86986.0,86958.0,0.05592]
[1763958722235,0.0404173,86979.0,86969.0,0.038]
[1763958722517,0.0105773,86978.0,86969.0,0.00662]
[1763958722724,0.00075658,86973.0,86969.0,0.00662]
[1763958722926,0.35284,86979.0,86969.0,0.00662]
[1763958723123,0.01057785,86978.0,86969.0,0.00662]
[1763958723322,0.323,86979.0,86971.0,0.09696278]
[1763958723614,0.0004,86980.0,86971.0,0.09696278]
[1763958723615,0.01057878,86978.0,86971.0,0.09696278]
[1763958723818,0.001,86978.0,86971.0,0.09696278]
[1763958724026,0.001,86978.0,86969.0,0.00662]
[1763958724385,0.03947,86970.0,86958.0,0.01792]
[1763958724588,2.3547422,86969.0,86958.0,0.01792]
[1763958724790,0.323,86967.0,86958.0,0.01792]
[1763958724987,0.0317422,86966.0,86958.0,0.01792]
[1763958725216,0.02116131,86965.0,86958.0,0.01792]
[1763958725376,0.02931,86968.0,86958.0,0.01792]
[1763958727014,0.02931,86981.0,86958.0,0.01792]
[1763958727015,2.0,86979.0,86958.0,0.01792]
[1763958727382,0.56122879,86980.0,86958.0,0.01792]
[1763958727383,0.323,86976.0,86958.0,0.01792]
[1763958727581,0.323,86974.0,86958.0,0.01792]
[1763958727858,0.323,86970.0,86958.0,0.01792]
[1763958728218,0.32366203,86970.0,86958.0,0.01792]
[1763958728416,0.323,86970.0,86958.0,0.01792]
[1763958729031,0.001,86979.0,86958.0,0.01792]
[1763958729032,0.324,86979.0,86958.0,0.01792]
[1763958729232,2.0,86975.0,86958.0,0.01792]
[1763958729458,0.56122879,86980.0,86958.0,0.01792]
[1763958729459,0.323,86972.0,86958.0,0.01792]
[1763958729633,0.323,86970.0,86958.0,0.01792]
[1763958730098,0.323,86970.0,86948.0,0.0547]
[1763958730099,0.02931,86959.0,86946.0,0.01857784]
[1763958730248,0.02931,86959.0,86947.0,0.09696278]
[1763958730450,0.02931,86959.0,86946.0,0.01857784]
[1763958730948,0.35231,86959.0,86946.0,0.01857784]
[1763958731370,0.35231,86959.0,86946.0,0.00011784]
[1763958731591,0.06878,86947.0,86946.0,0.00011784]
[1763958732004,0.44698,86947.0,86946.0,0.00011784]
[1763958733045,2.44698,86947.0,86946.0,0.00011784]
[1763958733253,2.47136852,86947.0,86946.0,0.00011784]
[1763958733430,2.44798,86947.0,86946.0,0.00011784]
[1763958733784,2.44798,86947.0,86905.0,0.01846]
[1763958733785,0.323,86934.0,86905.0,0.01846]
[1763958733990,0.323,86921.0,86912.0,0.01803792]